bitfinex-derivatives/quotes_ETHF0:USTF0_20260305
["timestamp","ask_amount","ask_price","bid_price","bid_amount"]
[1772736209872,1.65386857,2076.1,2074.9,1.63916699]
[1772736210269,1.65386857,2076.1,2074.9,18.20916699]
[1772736211069,1.65386857,2076.1,2074.9,18.26669622]
[1772736211265,1.67263492,2075.9,2075.0,1.69150018]
[1772736211468,1.67263492,2075.9,2074.9,0.00519604]
[1772736211667,1.67263492,2075.9,2074.3,40.8]
[1772736211668,1.67263492,2075.9,2074.6,1.69150018]
[1772736212674,1.67263492,2075.9,2074.7,1.69150018]
[1772736212874,1.67263492,2075.9,2074.9,1.69150018]
[1772736213273,1.67263492,2075.9,2075.0,1.69150018]
[1772736217767,1.67263492,2075.9,2074.9,16.596]
[1772736218366,1.67263492,2075.9,2075.0,1.69150018]
[1772736219174,1.67263492,2075.9,2074.8,1.69150018]
[1772736219371,1.67263492,2075.9,2074.9,1.69150018]
[1772736224081,1.67263492,2075.9,2075.2,1.69150018]
[1772736224986,1.67263492,2075.9,2074.9,1.69150018]
[1772736225190,1.67263492,2075.7,2074.9,1.69150018]
[1772736225389,1.91351492,2075.6,2074.9,1.69150018]
[1772736225983,0.24088,2075.6,2074.9,1.69150018]
[1772736227289,1.91351492,2075.6,2074.9,1.69150018]
[1772736227482,0.24092,2075.2,2074.9,1.69150018]
[1772736228387,0.24092,2075.2,2074.7,0.00575648]
[1772736228388,0.24097,2074.8,2074.7,0.00575648]
[1772736228587,0.24097,2074.8,2074.7,6.48e-06]
[1772736228891,1.91360492,2074.8,2074.3,1.69150018]
[1772736229989,1.91980522,2074.8,2074.3,1.69699398]
[1772736230490,0.2471703,2074.8,2074.3,1.69699398]
[1772736230882,1.67263492,2075.2,2074.3,1.69699398]
[1772736231484,5.70476048,2076.1,2074.3,1.69699398]
[1772736231690,1.91349492,2075.8,2075.2,1.69150018]
[1772736231886,0.24091,2075.4,2074.9,1.69150018]
[1772736232091,1.91354492,2075.4,2074.9,1.69150018]
[1772736232894,0.24091,2075.4,2074.9,1.69150018]
[1772736233094,1.91354492,2075.4,2074.9,1.69150018]
[1772736233693,0.24092,2075.2,2074.6,1.45271485]
[1772736234491,1.91355492,2075.2,2074.6,1.45271485]
[1772736234891,0.24092,2075.2,2074.6,1.45271485]
[1772736235795,1.91355492,2075.2,2074.6,1.45271485]
[1772736235997,0.24097,2074.8,2074.6,1.45271485]
[1772736236293,1.67263492,2075.2,2074.6,1.45271485]
[1772736236992,0.24097,2074.8,2074.6,1.45271485]
[1772736237197,1.91360492,2074.8,2074.4,0.66026063]
[1772736238499,0.24097,2074.8,2074.4,0.66026063]
[1772736239192,1.67263492,2075.2,2074.4,0.66026063]
[1772736239393,1.91354492,2075.3,2074.6,0.47375378]
[1772736240290,0.24091,2075.3,2074.6,0.47375378]
[1772736240590,0.24091,2075.3,2074.9,0.52904233]
[1772736241193,1.70849633,2075.7,2074.9,0.52904233]
[1772736241396,1.70849633,2075.7,2074.6,16.617]
[1772736241397,1.71274975,2075.8,2075.2,0.41850568]
[1772736242297,1.95360975,2075.8,2075.2,0.41850568]
[1772736242997,1.95360975,2075.8,2075.1,3.0639673]
[1772736243197,1.94941633,2075.3,2074.8,0.4240569]
[1772736243394,0.24092,2075.3,2074.8,0.4240569]
[1772736243598,1.70849633,2075.7,2075.0,0.4240569]
[1772736244399,0.24088,2075.6,2075.0,0.4240569]
[1772736244701,2.10845666,2075.6,2075.0,0.4240569]
[1772736246101,0.24088,2075.6,2075.2,3.0639673]
[1772736246296,2.11493588,2075.6,2075.2,3.0639673]
[1772736246596,2.11493588,2075.6,2074.9,3.0639673]
[1772736246901,2.11493588,2075.6,2074.9,19.6819673]
[1772736248298,2.11611022,2075.3,2074.6,9.02661275]
[1772736248497,2.11611022,2075.3,2074.6,3.0639673]
[1772736249095,0.24092,2075.3,2074.6,3.0639673]
[1772736249402,2.11652779,2075.3,2074.6,3.0639673]
[1772736250102,2.11652779,2075.3,2074.6,9.02661275]
[1772736250400,0.24092,2075.3,2074.6,3.0639673]
[1772736250603,0.24092,2075.3,2074.9,3.0639673]
[1772736251298,0.00425342,2075.8,2075.2,3.0639673]
[1772736251299,2.11595327,2075.7,2075.2,3.0639673]
[1772736251505,0.00425342,2075.8,2075.5,3.0639673]
[1772736251800,2.11591327,2076.0,2075.5,3.0639673]
[1772736252800,2.12171369,2076.0,2075.5,3.0639673]
[1772736254201,0.24663042,2076.0,2075.5,3.0639673]
[1772736254402,0.00580042,2076.0,2075.5,19.6909673]
[1772736254808,0.24078,2076.5,2075.8,3.0639673]
[1772736255099,0.24078,2076.5,2076.1,3.0639673]
[1772736255505,2.11572689,2076.5,2076.0,16.632]
[1772736255705,2.12093248,2076.5,2076.0,0.0052786]
[1772736256007,2.12093248,2076.5,2075.7,16.633]
[1772736256799,2.12093248,2076.5,2075.7,16.63637205]
[1772736259209,0.2408,2076.3,2075.7,16.63637205]
[1772736259405,1.89259692,2076.0,2075.7,0.00337205]
[1772736259909,0.24084,2075.9,2075.7,0.00337205]
[1772736260504,0.24084,2075.9,2075.5,19.7139673]
[1772736261112,0.24084,2075.9,2069.0,60.37753373]
[1772736261113,2.13464595,2075.9,2075.1,5.96264545]
[1772736261303,2.13464595,2075.9,2075.2,16.661]
[1772736261501,2.13464595,2075.9,2075.2,16.66487216]
[1772736261700,2.13470595,2075.4,2075.2,0.00387216]
[1772736261902,0.24095,2075.0,2074.7,16.667]
[1772736262105,2.12647889,2075.0,2074.6,3.0639673]
[1772736262306,2.12647889,2075.0,2074.4,40.8]
[1772736262904,0.24585655,2075.0,2074.4,40.80456884]
[1772736264514,0.24585655,2075.0,2074.5,16.689]
[1772736265414,1.90088878,2075.4,2074.6,3.0639673]
[1772736266115,0.24095,2075.0,2074.6,3.0639673]
[1772736266315,0.24480019,2075.0,2074.6,3.0639673]
[1772736266615,2.1376697,2075.6,2074.9,3.0639673]
[1772736266809,2.1376697,2075.6,2074.9,19.7779673]
[1772736267613,2.14316094,2075.6,2074.9,19.7779673]
[1772736269519,0.24638124,2075.6,2074.9,19.7779673]
[1772736269916,0.24638124,2075.6,2075.2,3.0639673]
[1772736270517,1.90041578,2076.0,2075.3,16.757]
[1772736271621,1.90495916,2076.0,2075.3,16.757]
[1772736272122,0.24089,2075.6,2075.3,16.757]
[1772736272719,0.24089,2075.6,2075.2,3.0639673]
[1772736272921,0.24089,2075.6,2075.2,19.8439673]
[1772736273322,2.14947202,2075.6,2075.2,19.8439673]
[1772736273623,0.24089,2075.6,2075.2,19.8439673]
[1772736274625,0.24089,2075.6,2075.2,16.78]
[1772736277333,1.91393786,2076.0,2075.2,16.78]
[1772736277835,2.15023448,2075.9,2075.2,16.78]
[1772736278036,2.15028448,2075.5,2075.2,16.818]
[1772736280539,0.24089,2075.5,2075.2,16.818]
[1772736280834,0.00454338,2076.0,2075.2,16.818]
[1772736281036,1.91921899,2075.7,2074.9,5.96264545]
[1772736281241,1.91921899,2075.7,2074.9,16.836]
[1772736281731,5.92914338,2076.0,2074.7,5.96264545]
[1772736281732,1.9196552,2075.4,2074.7,5.96264545]
[1772736281939,2.1606052,2075.1,2074.4,57.64456884]
[1772736282132,0.24098,2074.7,2074.4,16.84456884]
[1772736282331,0.24098,2074.7,2074.1,16.841]
[1772736282535,0.24098,2074.7,2074.1,57.641]
[1772736282735,2.00248763,2075.6,2074.5,3.06290607]
[1772736282934,2.00248763,2075.6,2074.6,22.80764545]
[1772736283139,2.00248763,2075.6,2074.6,16.845]
[1772736283434,2.00248763,2075.6,2074.6,16.84922446]
[1772736283635,0.24089,2075.5,2074.7,5.96264545]
[1772736286842,0.24089,2075.5,2074.8,5.96264545]
[1772736287042,2.25091457,2076.0,2074.9,5.96264545]
[1772736287739,2.25091457,2076.0,2075.0,5.96264545]
[1772736287942,0.00454338,2076.0,2075.2,5.96264545]
[1772736288441,0.00454338,2076.0,2075.3,40.8]
[1772736290238,2.2573277,2075.9,2075.4,16.881]
[1772736291346,0.24084,2075.9,2075.4,16.881]
[1772736293643,2.26075195,2075.9,2075.2,46.76264545]
[1772736293850,2.26075195,2075.9,2075.4,16.908]
[1772736298644,2.26084566,2075.6,2075.2,5.96264545]
[1772736298849,0.24089,2075.6,2075.0,22.92764545]
[1772736299050,2.26084566,2075.6,2075.0,16.965]
[1772736299251,2.26084566,2075.6,2075.0,57.765]
[1772736299752,0.24089,2075.6,2075.0,63.72764545]
[1772736300745,0.24092,2075.3,2075.0,63.72764545]
[1772736300946,2.0210197,2075.9,2075.0,57.765]
[1772736301251,2.0210197,2075.9,2075.0,63.72764545]
[1772736301653,0.24087,2075.7,2075.0,63.72764545]
[1772736301853,0.24091,2075.4,2075.1,17.005]
[1772736302755,2.26052152,2075.4,2074.9,5.96264545]
[1772736303054,2.01961152,2075.8,2074.9,22.98164545]
[1772736303254,0.00454338,2076.0,2074.9,22.98164545]
[1772736303255,0.24084,2075.9,2075.0,40.8]
[1772736303455,0.24084,2075.9,2075.1,5.96264545]
[1772736303655,2.26069446,2075.9,2075.1,5.96264545]
[1772736304755,0.24089,2075.6,2075.1,5.96264545]
[1772736305252,0.24089,2075.6,2075.2,17.056]
[1772736307763,2.26633487,2076.0,2075.2,17.056]
[1772736308060,2.26633487,2076.0,2075.2,23.01864545]
[1772736309052,0.24537338,2076.0,2075.2,23.01864545]
[1772736309253,0.24537338,2076.0,2075.3,5.96264545]
[1772736310463,2.02829655,2076.0,2075.4,5.96264545]
[1772736310665,2.02829655,2076.0,2075.5,17.146]
[1772736310963,0.24084,2075.9,2075.5,17.151]
[1772736311857,2.26483276,2075.9,2075.5,17.151]
[1772736312054,2.26483276,2075.9,2075.2,5.96264545]
[1772736312260,2.26483276,2075.9,2075.3,17.173]
[1772736312959,2.26333719,2075.3,2074.9,17.186]
[1772736313158,0.24092,2075.3,2074.9,17.186]
[1772736313359,0.24092,2075.3,2074.9,23.14864545]
[1772736313560,0.24092,2075.3,2074.9,57.986]
[1772736314561,0.24092,2075.3,2074.9,63.94864545]
[1772736314957,2.26082406,2075.8,2074.9,63.94864545]
[1772736315161,2.26105608,2075.9,2075.0,5.96264545]
[1772736315562,2.26105608,2075.9,2074.9,63.94864545]
[1772736316166,2.26105608,2075.9,2075.0,5.96264545]
[1772736317368,2.26105608,2075.9,2075.1,5.96264545]
[1772736317565,2.26105608,2075.9,2075.0,5.96264545]
[1772736317768,2.26276023,2075.5,2074.9,46.76264545]
[1772736317964,0.24089,2075.5,2075.0,17.267]
[1772736318568,0.24089,2075.5,2075.0,23.22964545]
[1772736318764,2.02184952,2075.9,2075.0,23.22964545]
[1772736318963,2.2672329,2076.0,2075.1,5.96264545]
[1772736320263,2.2672329,2076.0,2075.0,3.06290607]
[1772736320264,2.2672329,2076.0,2075.2,17.306]
[1772736320664,2.26232969,2075.6,2075.2,17.306]
[1772736320863,2.26232969,2075.6,2075.1,17.315]
[1772736321369,2.26232969,2075.6,2074.9,46.76264545]
[1772736321370,2.26232969,2075.6,2075.0,17.323]
[1772736322064,2.26262271,2075.2,2075.0,17.08171229]
[1772736322367,0.24092,2075.2,2075.0,17.08171229]
[1772736323264,0.24088,2075.7,2075.0,17.08171229]
[1772736323468,2.02162392,2075.4,2075.0,17.08171229]
[1772736324673,0.24089,2075.5,2075.0,17.08171229]
[1772736324872,2.25287128,2075.5,2075.0,17.08171229]
[1772736325468,2.25287128,2075.5,2074.9,17.385]
[1772736325767,2.25287128,2075.5,2074.7,17.389]
[1772736325768,2.25320183,2075.1,2074.7,17.389]
[1772736326165,2.25320183,2075.1,2074.6,0.00422446]
[1772736326768,0.24101,2074.5,2074.2,17.403]
[1772736327871,2.25373239,2074.5,2074.2,0.00363385]
[1772736328168,2.25373239,2074.5,2074.0,17.421]
[1772736328870,2.25373239,2074.5,2073.8,40.8]
[1772736329066,2.25373239,2074.5,2074.0,17.436]
[1772736329268,0.24533528,2074.5,2074.0,17.436]
[1772736329463,2.24329679,2074.5,2074.0,17.436]
[1772736330169,0.24533528,2074.5,2074.0,17.436]
[1772736330768,2.23983317,2074.5,2073.8,40.80386086]
[1772736330969,2.23983317,2074.5,2073.9,17.465]
[1772736331675,2.23983317,2074.5,2073.8,40.80386086]
[1772736331875,2.23983317,2074.5,2073.9,17.478]
[1772736332770,0.24533528,2074.5,2073.9,17.478]
[1772736333171,2.23925841,2074.5,2073.9,17.478]
[1772736334073,0.24533528,2074.5,2073.9,17.478]
[1772736335175,1.99425901,2074.7,2073.9,17.478]
[1772736335176,1.98892222,2074.9,2073.9,17.478]
[1772736335670,0.24096,2075.0,2073.9,17.478]
[1772736336072,2.23541363,2075.0,2073.9,17.478]
[1772736336470,2.23541363,2075.0,2074.1,3.06596963]
[1772736336671,0.0051807,2075.0,2074.1,3.06596963]
[1772736336870,0.0051807,2075.0,2074.0,0.24106]
[1772736336871,2.23103141,2075.5,2074.7,3.06596963]
[1772736337071,0.2409,2075.5,2074.8,17.563]
[1772736337267,6.315,2076.3,2075.0,3.06596963]
[1772736337268,1.99048089,2075.9,2075.0,3.06596963]
[1772736337473,0.24084,2076.0,2075.0,3.06596963]
[1772736337674,2.23132089,2076.0,2075.0,3.06596963]
[1772736337874,2.23132089,2076.0,2075.1,40.8]
[1772736338176,2.23604913,2076.0,2075.2,17.578]
[1772736339376,0.24556824,2076.0,2075.3,3.06596963]
[1772736339568,0.24556824,2076.0,2075.3,3.0709882]
[1772736343283,0.00472824,2076.0,2075.3,3.0709882]
[1772736343983,1.99331468,2076.0,2075.3,3.0709882]
[1772736345373,1.99197797,2075.8,2075.3,0.00501857]
[1772736345577,1.99197797,2075.8,2075.4,16.95106367]
[1772736346280,1.99197797,2075.8,2075.4,16.60321565]
[1772736346474,0.00472824,2076.0,2075.3,8.57e-06]
[1772736346475,1.99010551,2075.6,2075.3,8.57e-06]
[1772736346674,1.99010551,2075.6,2075.1,17.68]
[1772736346879,0.24089,2075.5,2075.0,17.682]
[1772736347077,0.00472824,2076.0,2075.3,3.06596963]
[1772736347078,2.23567375,2076.0,2075.3,3.06596963]
[1772736347278,2.23567375,2076.0,2075.4,17.686]
[1772736347786,2.23567375,2076.0,2075.4,17.69139838]
[1772736347985,0.24556824,2076.0,2075.4,17.69139838]
[1772736350388,2.24203629,2076.0,2075.5,17.714]
[1772736350588,2.24203629,2076.0,2075.4,0.00539838]
[1772736350887,2.24203629,2076.0,2075.4,17.72139838]
[1772736351488,0.24556824,2076.0,2075.4,17.72139838]
[1772736351689,0.24556824,2076.0,2075.6,3.06596963]
[1772736351889,1.99681164,2076.4,2075.6,3.06596963]
[1772736352186,1.99681164,2076.7,2075.9,3.06596963]
[1772736352379,0.2408,2076.3,2076.0,17.726]
[1772736352780,0.2408,2076.3,2075.6,3.06596963]
[1772736352980,2.24472621,2076.3,2075.7,17.73]
[1772736353385,2.24472621,2076.3,2075.8,17.733]
[1772736353786,2.24472621,2076.3,2075.6,3.06596963]
[1772736354093,0.24084,2075.9,2075.4,17.74039838]
[1772736355088,2.24502907,2075.9,2075.4,17.74039838]
[1772736355490,2.24502907,2075.9,2075.4,0.00539838]
[1772736356094,0.24084,2075.9,2075.4,0.00539838]
[1772736356892,2.2524811,2075.9,2075.4,0.00539838]
[1772736357293,2.25283617,2075.5,2075.2,17.711]
[1772736357588,2.25283617,2075.5,2075.0,17.714]
[1772736358088,0.24089,2075.5,2075.0,17.714]
[1772736358293,2.25120907,2075.5,2075.0,17.71910034]
[1772736359294,2.01062918,2075.2,2075.0,0.00510034]
[1772736359490,0.24094,2075.1,2075.0,3.4e-07]
[1772736359689,2.25156918,2075.1,2074.5,17.737]
[1772736360088,0.24098,2074.7,2074.1,3.06596963]
[1772736360293,2.2473202,2074.7,2074.2,17.743]
[1772736360695,2.25160548,2074.7,2074.2,17.7479372]
[1772736361497,0.24526528,2074.7,2074.2,17.7479372]
[1772736362295,2.23975017,2074.7,2074.2,0.0049372]
[1772736362896,0.241,2074.5,2074.2,7.2e-06]
[1772736363090,2.23551489,2074.3,2074.2,7.2e-06]
[1772736363700,0.24103,2074.3,2074.2,7.2e-06]
[1772736364995,2.2360534,2074.3,2074.2,7.2e-06]
[1772736365398,2.2360534,2074.3,2073.5,3.06596963]
[1772736365602,2.2360534,2074.3,2073.5,20.86396963]
[1772736366602,2.2360534,2074.3,2073.5,20.86919692]
[1772736367297,2.2360534,2074.3,2073.5,0.00522729]
[1772736367601,8.1655834,2074.3,2073.5,0.00522729]
[1772736367802,1.99451032,2074.0,2073.5,0.00522729]
[1772736368397,1.99559293,2073.8,2072.8,0.08388847]
[1772736368696,1.99559293,2073.8,2072.8,3.06596963]
[1772736369003,1.99559293,2073.8,2072.9,40.8]
[1772736369501,1.99559293,2073.8,2072.9,40.80622527]
[1772736371304,1.99559293,2073.8,2073.1,3.06596963]
[1772736371800,1.99559293,2073.8,2072.9,40.80622527]
[1772736372503,1.99559293,2073.8,2073.0,17.858]
[1772736373604,1.99559293,2073.8,2073.1,3.06596963]
[1772736374706,1.99559293,2073.8,2073.0,17.858]
[1772736374903,0.24107,2073.9,2072.9,0.00622527]
[1772736374904,1.99488516,2073.6,2072.9,0.00622527]
[1772736375202,1.99488516,2073.4,2072.9,0.00622527]
[1772736377508,0.24112,2073.5,2072.9,0.00622527]
[1772736377709,2.01603394,2073.6,2072.9,0.00622527]
[1772736378500,2.25714394,2073.6,2072.9,0.00622527]
[1772736380309,2.01856102,2074.1,2073.1,3.06596963]
[1772736380507,2.01856102,2073.9,2073.1,3.06596963]
[1772736381506,2.01856102,2073.9,2072.9,0.00622527]
[1772736381707,2.01885832,2073.7,2073.0,17.88]
[1772736383111,2.01885832,2073.7,2073.1,3.06596963]
[1772736383802,2.13358539,2074.0,2073.1,3.06596963]
[1772736384409,2.14048268,2073.8,2073.1,3.06596963]
[1772736384711,2.14048268,2073.6,2072.9,0.00622527]
[1772736384913,2.14048268,2073.4,2072.9,17.91922527]
[1772736386107,6.314,2074.3,2072.9,17.91922527]
[1772736386108,2.14042479,2073.8,2073.1,3.06596963]
[1772736391913,2.14812621,2073.4,2072.9,17.96722527]
[1772736392212,2.15662708,2073.2,2072.9,0.00622527]
[1772736392416,2.1604833,2073.2,2072.9,0.00622527]
[1772736392818,0.00385622,2073.2,2072.9,0.00622527]
[1772736393115,2.15662708,2073.9,2072.9,0.00622527]
[1772736393306,5.92979,2074.2,2073.1,3.06596963]
[1772736393307,2.15652069,2073.6,2073.1,3.06596963]
[1772736394108,2.16049649,2073.6,2073.1,3.06596963]
[1772736398221,0.0039758,2073.6,2073.1,3.06596963]
[1772736398421,0.0039758,2073.6,2073.1,9.02861508]
[1772736398616,2.16494109,2073.6,2073.1,5.96264545]
[1772736399320,2.40606109,2073.6,2073.1,5.96264545]
[1772736399523,2.40606109,2073.6,2072.9,7.45194344]
[1772736399524,2.40606109,2073.6,2072.9,5.96887072]
[1772736400524,2.16494109,2073.6,2073.0,5.96264545]
[1772736400718,2.40062318,2074.0,2073.0,5.96264545]
[1772736400924,2.40062318,2074.0,2073.2,5.96264545]
[1772736401119,2.15955318,2074.0,2073.4,5.96264545]
[1772736401323,1.438461,2074.4,2073.6,0.66349374]
[1772736401520,1.438461,2074.9,2074.1,0.66349374]
[1772736401717,1.438461,2074.7,2074.1,18.014]
[1772736401921,0.24099,2074.6,2074.1,18.014]
[1772736402122,1.438461,2074.5,2074.1,18.014]
[1772736402824,1.679481,2074.4,2073.7,23.98564545]
[1772736403027,1.679481,2074.4,2073.8,0.81161598]
[1772736403826,1.438461,2074.4,2073.8,0.81161598]
[1772736405424,1.438461,2074.4,2073.7,18.023]
[1772736406225,1.438461,2074.2,2073.5,18.049]
[1772736406827,1.438461,2074.2,2073.5,18.82531925]
[1772736408028,1.438461,2074.2,2073.6,0.79795159]
[1772736408428,1.438461,2074.7,2073.6,0.79795159]
[1772736408731,1.438461,2074.7,2073.7,0.79915729]
[1772736409531,1.438461,2074.7,2073.8,0.80954206]
[1772736411335,1.44286659,2074.9,2073.9,0.97963788]
[1772736411534,0.00440559,2074.9,2074.2,0.97963788]
[1772736411732,1.438461,2075.7,2074.5,0.97523229]
[1772736411929,1.438461,2075.7,2074.7,0.9955898]
[1772736412737,1.44327818,2075.7,2074.7,0.99958797]
[1772736413330,1.438461,2075.5,2074.7,0.00399817]
[1772736413639,1.438461,2075.5,2074.8,18.112]
[1772736413838,1.438461,2075.3,2074.7,0.00399817]
[1772736414139,1.438461,2075.3,2074.8,1.01477823]
[1772736414741,0.2409,2075.4,2074.8,1.01477823]
[1772736415433,1.438461,2075.6,2074.8,1.01477823]
[1772736416735,0.00481718,2075.7,2074.8,1.01477823]
[1772736417137,1.679301,2076.0,2075.1,1.04278498]
[1772736417444,1.679301,2076.0,2075.3,1.03780776]
[1772736417843,1.679301,2076.0,2075.2,18.137]
[1772736418246,1.68516782,2076.0,2075.2,18.137]
[1772736419646,1.68516782,2076.0,2074.9,1.04927054]
[1772736419843,1.68516782,2076.0,2075.0,18.152]
[1772736420147,1.68516782,2076.0,2075.1,1.07399671]
[1772736420944,0.00586682,2076.0,2075.1,1.07399671]
[1772736421139,1.50797479,2076.2,2075.1,1.07399671]
[1772736421343,1.50797479,2076.4,2075.6,1.08136591]
[1772736421543,1.50797479,2076.4,2075.8,1.08136591]
[1772736421848,1.50797479,2076.6,2075.8,1.08136591]
[1772736422039,1.50797479,2076.8,2075.8,1.08136591]
[1772736422243,1.5132855,2076.8,2075.8,1.08136591]
[1772736422451,0.00531071,2076.8,2075.8,1.08136591]
[1772736422647,0.00531071,2076.8,2076.0,1.05894429]
[1772736423246,1.5132855,2076.8,2076.0,1.05894429]
[1772736423648,1.74872479,2076.7,2076.0,18.166]
[1772736424038,1.74872479,2076.7,2075.9,41.86487291]
[1772736424349,1.50797479,2076.2,2075.7,19.25032827]
[1772736424642,1.50797479,2076.2,2075.8,18.169]
[1772736424949,1.50797479,2076.2,2075.8,58.969]
[1772736425345,1.50797479,2076.2,2075.8,19.25799417]
[1772736425647,1.74877479,2076.3,2075.8,19.25799417]
[1772736427543,1.74877479,2076.3,2075.9,1.11176866]
[1772736427938,1.74877479,2076.3,2075.8,19.28616708]
[1772736429449,1.74877479,2076.3,2075.9,1.12335277]
[1772736430150,1.50797479,2076.7,2075.9,1.12335277]
[1772736431245,1.50797479,2076.7,2076.1,1.12717391]
[1772736431944,1.50797479,2076.7,2076.1,18.191]
[1772736433950,1.50797479,2076.7,2076.1,19.33993133]
[1772736434347,0.00531071,2076.8,2076.2,1.148706]
[1772736434549,0.00531071,2076.8,2076.2,1.15422945]
[1772736435051,0.72873888,2076.9,2076.2,1.15422945]
[1772736435253,0.96946888,2076.9,2076.2,1.15422945]
[1772736435449,0.96946888,2076.9,2076.2,0.00552345]
[1772736435644,1.50797479,2076.4,2075.9,18.203]
[1772736435850,1.50797479,2076.4,2076.0,1.46723196]
[1772736436155,1.50797479,2076.8,2076.0,1.46723196]
[1772736436550,1.51195672,2076.8,2076.0,1.47251652]
[1772736438255,0.00398193,2076.8,2076.0,1.47251652]
[1772736438659,1.51195672,2076.8,2076.0,1.47251652]
[1772736439651,1.74872479,2076.7,2076.0,1.47251652]
[1772736439958,0.2408,2076.3,2076.0,19.68651652]
[1772736440357,0.2408,2076.3,2076.1,1.46723196]
[1772736440954,1.74877479,2076.3,2076.0,17.78611736]
[1772736441362,0.24084,2075.9,2075.6,1.46723196]
[1772736441660,0.24084,2075.9,2075.5,18.216]
[1772736441661,0.24084,2075.9,2075.5,19.68323196]
[1772736441962,0.24084,2075.9,2075.6,1.46723196]
[1772736442358,1.50797479,2076.1,2075.6,1.46723196]
[1772736443956,1.50797479,2076.1,2075.5,18.23202533]
[1772736444466,1.50797479,2076.6,2075.6,1.46723196]
[1772736445162,1.58237632,2076.4,2075.5,18.23202533]
[1772736445360,1.58237632,2076.4,2075.5,19.89943296]
[1772736445958,1.58237632,2076.4,2075.6,1.66740763]
[1772736446563,1.58237632,2076.0,2075.5,0.00502533]
[1772736446863,1.58237632,2076.0,2075.3,18.244]
[1772736447561,1.58237632,2076.0,2075.2,42.46740763]
[1772736447763,1.58237632,2075.8,2075.0,1.66740763]
[1772736448059,1.58237632,2075.8,2075.0,1.67127956]
[1772736448259,1.58237632,2075.8,2075.0,42.47127956]
[1772736448455,1.82324632,2075.7,2075.1,1.66740763]
[1772736448964,1.82324632,2075.7,2075.0,0.00387193]
[1772736449160,1.82324632,2075.7,2075.0,1.67127956]
[1772736452659,0.24087,2075.7,2075.0,1.67127956]
[1772736453564,1.86978189,2075.7,2075.0,1.67127956]
[1772736453766,1.86978189,2075.7,2075.2,1.61781278]
[1772736454368,1.86978189,2075.7,2075.1,18.3]
[1772736454758,1.86978189,2075.7,2075.0,1.62168471]
[1772736454759,1.86978189,2075.7,2075.0,19.92568471]
[1772736455168,1.86978189,2075.7,2075.1,1.61781278]
[1772736455566,0.24087,2075.7,2075.1,1.61781278]
[1772736455770,1.62891189,2076.3,2075.2,1.61781278]
[1772736455973,1.86971189,2076.3,2075.2,1.61781278]
[1772736456162,1.62891189,2076.5,2075.3,1.61781278]
[1772736456465,0.24472193,2076.8,2075.7,1.61781278]
[1772736456770,0.24472193,2076.8,2075.9,1.61781278]
[1772736457070,1.87363382,2076.8,2075.9,1.61781278]
[1772736457464,0.24472193,2076.8,2075.9,1.61781278]
[1772736457665,0.24472193,2076.8,2076.0,1.61781278]
[1772736457871,1.62891189,2077.1,2076.0,1.61781278]
[1772736458265,0.24074,2076.8,2076.0,1.61781278]
[1772736458467,0.24074,2076.8,2076.3,1.61781278]
[1772736458668,1.86965189,2076.8,2076.3,1.61781278]
[1772736458870,1.87488694,2076.8,2076.4,19.95281278]
[1772736459067,1.63414694,2076.8,2076.4,19.95281278]
[1772736459267,0.00523505,2076.8,2076.4,19.95281278]
[1772736459773,1.63414694,2076.8,2076.2,18.342]
[1772736460270,1.63414694,2076.8,2076.2,19.95981278]
[1772736460570,0.00523505,2076.8,2076.3,1.61781278]
[1772736460966,1.63414694,2076.8,2076.3,1.61781278]
[1772736461774,1.62891189,2077.0,2076.3,1.61781278]
[1772736462266,1.62891189,2077.6,2076.6,1.61781278]
[1772736462471,1.62891189,2077.6,2076.9,1.61781278]
[1772736462671,1.62891189,2077.6,2077.1,1.61781278]
[1772736462876,1.63338572,2077.6,2077.1,0.00617039]
[1772736463080,1.63338572,2077.6,2077.1,1.62398317]
[1772736463474,1.63338572,2077.6,2077.1,0.00617039]
[1772736465480,1.62891189,2077.4,2076.3,1.61781278]
[1772736466275,1.62891189,2077.4,2076.3,1.62160887]
[1772736467076,1.62891189,2077.4,2076.6,1.61781278]
[1772736468877,1.62891189,2077.4,2076.5,4.67760418]
[1772736469076,1.62891189,2077.4,2076.6,1.61781278]
[1772736470184,1.62891189,2077.4,2076.4,1.61781278]
[1772736470787,1.62891189,2077.0,2076.4,1.61781278]
[1772736471391,1.62891189,2077.5,2076.6,1.61781278]
[1772736472081,1.62891189,2077.3,2076.6,1.61781278]
[1772736472482,1.86960189,2077.2,2076.6,1.61781278]
[1772736472677,1.86960189,2077.2,2076.3,18.40479609]
[1772736472882,1.86960189,2077.2,2076.3,20.02260887]
[1772736473082,1.86966189,2076.8,2076.3,0.00379609]
[1772736473281,0.24076,2076.6,2075.9,1.61781278]
[1772736473486,0.24076,2076.6,2076.0,1.61781278]
[1772736473683,1.86967189,2076.6,2076.0,1.61781278]
[1772736473884,0.24076,2076.6,2076.0,1.61781278]
[1772736474084,1.62891189,2076.9,2076.3,1.61781278]
[1772736474281,1.62891189,2076.9,2076.3,1.62253721]
[1772736475083,1.62891189,2076.7,2076.3,0.00472443]
[1772736477788,1.86967189,2076.6,2076.3,0.00472443]
[1772736477996,1.86967189,2076.6,2076.0,18.411]
[1772736478389,1.86967189,2076.6,2076.0,20.02881278]
[1772736479188,1.86967189,2076.6,2076.0,20.03288396]
[1772736480393,1.86967189,2076.6,2076.1,1.73849326]
[1772736480688,1.79417716,2077.0,2076.3,1.73849326]
[1772736482296,1.79417716,2076.8,2076.4,18.434]
[1772736482699,2.03492716,2076.7,2076.2,1.73849326]
[1772736482996,2.03492716,2076.7,2076.1,20.17549326]
[1772736483395,2.03497716,2076.3,2075.7,1.60508109]
[1772736483797,2.03502716,2075.9,2075.4,1.60508109]
[1772736483991,2.03506716,2075.5,2074.7,1.73849326]
[1772736484190,2.03508716,2075.3,2074.8,1.73849326]
[1772736484393,1.79417716,2075.7,2075.0,1.73849326]
[1772736484597,1.79417716,2075.7,2074.8,0.00543859]
[1772736485301,1.79417716,2075.7,2074.8,1.74393185]
[1772736485493,1.79914128,2075.7,2074.8,1.74393185]
[1772736485694,1.79914128,2075.7,2074.8,0.00543859]
[1772736486096,0.00496412,2075.7,2075.1,1.73849326]
[1772736486297,1.79914128,2075.7,2075.1,1.73849326]
[1772736486496,1.79914128,2075.7,2075.0,3.0597914]
[1772736487302,1.79914128,2075.7,2075.0,4.79828466]
[1772736487494,1.79914128,2075.7,2075.1,1.73849326]
[1772736487696,1.79417716,2076.1,2075.4,1.73849326]
[1772736488194,1.79417716,2076.1,2075.3,18.302]
[1772736488393,1.79417716,2076.1,2075.4,1.73849326]
[1772736488589,2.03497716,2076.3,2075.4,1.73849326]